[Event "Late-Titled-Tuesday-Blitz-October-03-2023"]
[Site "Chess.com"]
[Date "2023.10.03"]
[Round "10"]
[White "szachuspl"]
[Black "GaiozNigalidze"]
[Result "0-1"]
[WhiteElo "2528"]
[BlackElo "2738"]
[TimeControl "180+1"]
[EndTime "15:54:20 PDT"]
[Termination "GaiozNigalidze won by resignation"]

1. d4 {[%clk 0:03:00.9]} 1... Nf6 {[%clk 0:02:24.9]} 2. c4 {[%clk 0:02:58.9]}
2... e6 {[%clk 0:02:24.3]} 3. Nf3 {[%clk 0:02:58.9]} 3... d5 {[%clk 0:02:25.2]}
4. Nc3 {[%clk 0:02:58.7]} 4... Be7 {[%clk 0:02:25.7]} 5. Bf4 {[%clk 0:02:58.4]}
5... O-O {[%clk 0:02:25.7]} 6. e3 {[%clk 0:02:59]} 6... a6 {[%clk 0:02:25]} 7.
Rc1 {[%clk 0:02:57.2]} 7... dxc4 {[%clk 0:02:24.3]} 8. Bxc4 {[%clk 0:02:57.5]}
8... b5 {[%clk 0:02:24.5]} 9. Be2 {[%clk 0:02:57.8]} 9... Bb7 {[%clk 0:02:21.9]}
10. Qb3 {[%clk 0:02:57.1]} 10... Nbd7 {[%clk 0:01:56.2]} 11. a4 {[%clk
0:02:55.3]} 11... b4 {[%clk 0:01:54.6]} 12. Nb1 {[%clk 0:02:54.8]} 12... c5
{[%clk 0:01:54.2]} 13. O-O {[%clk 0:02:51.1]} 13... Bd5 {[%clk 0:01:51.7]} 14.
Qc2 {[%clk 0:02:48.9]} 14... a5 {[%clk 0:01:41.7]} 15. Nbd2 {[%clk 0:02:47.2]}
15... Rc8 {[%clk 0:01:34.3]} 16. Qb1 {[%clk 0:02:36]} 16... cxd4 {[%clk
0:01:30.5]} 17. exd4 {[%clk 0:02:31.1]} 17... Qb6 {[%clk 0:01:23.3]} 18. Bb5
{[%clk 0:02:28.5]} 18... Bd6 {[%clk 0:01:17.7]} 19. Be3 {[%clk 0:02:25.2]} 19...
Nb8 {[%clk 0:01:14.2]} 20. Nc4 {[%clk 0:02:22.1]} 20... Bxc4 {[%clk 0:01:13.8]}
21. Bxc4 {[%clk 0:02:22.3]} 21... Nd5 {[%clk 0:01:10.9]} 22. b3 {[%clk
0:02:21.5]} 22... Nc3 {[%clk 0:01:10.8]} 23. Qd3 {[%clk 0:02:21.4]} 23... Nd7
{[%clk 0:01:10.1]} 24. Ng5 {[%clk 0:02:21.2]} 24... Nf6 {[%clk 0:01:09.5]} 25.
Rfe1 {[%clk 0:02:18]} 25... h6 {[%clk 0:01:08.1]} 26. Nf3 {[%clk 0:02:17.8]}
26... Qb8 {[%clk 0:01:05.3]} 27. h3 {[%clk 0:02:17.1]} 27... Nfd5 {[%clk
0:01:04.3]} 28. Bd2 {[%clk 0:02:16.9]} 28... Bf4 {[%clk 0:01:03.6]} 29. Ne5
{[%clk 0:02:09.1]} 29... Bxe5 {[%clk 0:00:56.2]} 30. dxe5 {[%clk 0:02:01.4]}
30... Rfd8 {[%clk 0:00:56]} 31. Qg3 {[%clk 0:02:01.3]} 31... Kh8 {[%clk
0:00:49.3]} 32. Kh2 {[%clk 0:01:52.2]} 32... Qc7 {[%clk 0:00:47.3]} 33. Qh4
{[%clk 0:01:38.8]} 33... Kg8 {[%clk 0:00:39.6]} 34. Qh5 {[%clk 0:01:39]} 34...
Qe7 {[%clk 0:00:39.2]} 35. h4 {[%clk 0:01:38.7]} 35... Nb6 {[%clk 0:00:36.9]}
36. Bxc3 {[%clk 0:01:25.6]} 36... Nxc4 {[%clk 0:00:35.3]} 37. bxc4 {[%clk
0:01:23.8]} 37... bxc3 {[%clk 0:00:35.5]} 38. Rxc3 {[%clk 0:01:24.3]} 38... Rd4
{[%clk 0:00:36.3]} 39. g3 {[%clk 0:01:21.6]} 39... Qb4 {[%clk 0:00:33.5]} 40.
Ree3 {[%clk 0:01:14.4]} 40... Rdxc4 {[%clk 0:00:30.3]} 41. Rxc4 {[%clk
0:01:13.9]} 41... Qxc4 {[%clk 0:00:29.9]} 42. Qd1 {[%clk 0:01:11.3]} 42... Qb4
{[%clk 0:00:25.8]} 43. Qd7 {[%clk 0:01:08.6]} 43... Rb8 {[%clk 0:00:23.9]} 44.
Rf3 {[%clk 0:01:08.4]} 44... Rf8 {[%clk 0:00:24]} 45. Rf4 {[%clk 0:01:06.8]}
45... Qb2 {[%clk 0:00:22.8]} 46. Qc7 {[%clk 0:01:04.7]} 46... Qd2 {[%clk
0:00:17.7]} 47. Kh3 {[%clk 0:00:56.8]} 47... g5 {[%clk 0:00:17.9]} 48. hxg5
{[%clk 0:00:56.6]} 48... hxg5 {[%clk 0:00:18.8]} 49. Rf6 {[%clk 0:00:54.7]}
49... Kg7 {[%clk 0:00:19.2]} 50. Kg4 {[%clk 0:00:42.1]} 50... Qd1+ {[%clk
0:00:18.4]} 51. Kxg5 {[%clk 0:00:40.3]} 51... Qd2+ {[%clk 0:00:18.4]} 52. Kg4
{[%clk 0:00:40.5]} 52... Qd4+ {[%clk 0:00:17.8]} 53. Rf4 {[%clk 0:00:34.6]}
53... Qd1+ {[%clk 0:00:17.9]} 54. f3 {[%clk 0:00:34.9]} 54... Qd3 {[%clk
0:00:16.3]} 55. Qe7 {[%clk 0:00:34.1]} 55... Qg6+ {[%clk 0:00:14.8]} 56. Qg5
{[%clk 0:00:34.3]} 56... Qxg5+ {[%clk 0:00:13.2]} 57. Kxg5 {[%clk 0:00:34.5]}
57... Rb8 {[%clk 0:00:12.7]} 58. Re4 {[%clk 0:00:30.9]} 58... Rb3 {[%clk
0:00:12.3]} 59. Kf4 {[%clk 0:00:30.7]} 59... Kg6 {[%clk 0:00:10.7]} 60. Rd4
{[%clk 0:00:30.9]} 60... Ra3 {[%clk 0:00:10.7]} 61. Ke4 {[%clk 0:00:31.1]} 61...
Kg5 {[%clk 0:00:10.7]} 62. Rc4 {[%clk 0:00:31.4]} 62... Kg6 {[%clk 0:00:09.7]}
63. Kf4 {[%clk 0:00:29.7]} 63... Ra2 {[%clk 0:00:09.4]} 64. Kg4 {[%clk
0:00:29.9]} 64... Ra3 {[%clk 0:00:09.3]} 65. f4 {[%clk 0:00:29.5]} 65... Ra2
{[%clk 0:00:09.8]} 66. Rc8 {[%clk 0:00:17.3]} 66... Rxa4 {[%clk 0:00:09.1]} 67.
Rg8+ {[%clk 0:00:17.7]} 67... Kh7 {[%clk 0:00:09.6]} 68. Ra8 {[%clk 0:00:18.6]}
68... Kg7 {[%clk 0:00:09.5]} 69. Kg5 {[%clk 0:00:18.5]} 69... Ra1 {[%clk
0:00:09.5]} 70. g4 {[%clk 0:00:18.9]} 70... a4 {[%clk 0:00:09.8]} 71. f5 {[%clk
0:00:17.2]} 71... exf5 {[%clk 0:00:10.4]} 72. Kxf5 {[%clk 0:00:17.7]} 72... a3
{[%clk 0:00:10]} 73. Ra7 {[%clk 0:00:18.3]} 73... a2 {[%clk 0:00:09.5]} 74. Kg5
{[%clk 0:00:18.9]} 74... Kf8 {[%clk 0:00:08.3]} 75. Ra8+ {[%clk 0:00:14.7]}
75... Ke7 {[%clk 0:00:08.7]} 76. Ra6 {[%clk 0:00:15.3]} 76... Kd7 {[%clk
0:00:06.5]} 77. Rd6+ {[%clk 0:00:12.2]} 77... Kc7 {[%clk 0:00:05.1]} 78. Ra6
{[%clk 0:00:12.8]} 78... Kb7 {[%clk 0:00:05.4]} 79. Ra3 {[%clk 0:00:13.1]} 79...
Kc6 {[%clk 0:00:06]} 80. Ra5 {[%clk 0:00:11]} 80... Kb6 {[%clk 0:00:06.3]} 81.
Ra8 {[%clk 0:00:11.2]} 81... Kc5 {[%clk 0:00:06.8]} 82. Ra6 {[%clk 0:00:09.7]}
82... Kd5 {[%clk 0:00:06.5]} 83. Ra5+ {[%clk 0:00:10]} 83... Ke4 {[%clk
0:00:07]} 84. e6 {[%clk 0:00:09.3]} 84... fxe6 {[%clk 0:00:06.9]} 85. Kg6 {[%clk
0:00:09.9]} 85... Kd4 {[%clk 0:00:06.9]} 86. g5 {[%clk 0:00:10.2]} 86... e5
{[%clk 0:00:06.4]} 87. Ra4+ {[%clk 0:00:10.8]} 87... Kc3 {[%clk 0:00:06.5]} 88.
Ra8 {[%clk 0:00:08.6]} 88... e4 {[%clk 0:00:06.3]} 89. Rc8+ {[%clk 0:00:08]}
89... Kd3 {[%clk 0:00:06.7]} 90. Rd8+ {[%clk 0:00:08.2]} 90... Ke2 {[%clk
0:00:06.8]} 91. Ra8 {[%clk 0:00:08.6]} 91... e3 {[%clk 0:00:07.2]} 92. Kg7
{[%clk 0:00:09.2]} 92... Kf2 {[%clk 0:00:06]} 93. g6 {[%clk 0:00:09.6]} 93... e2
{[%clk 0:00:06.4]} 94. Rf8+ {[%clk 0:00:08.8]} 94... Kg1 {[%clk 0:00:05.9]} 95.
Kg8 {[%clk 0:00:04.6]} 95... e1=Q {[%clk 0:00:05.9]} 96. g7 {[%clk 0:00:05.5]}
96... Qe6+ {[%clk 0:00:05.9]} 97. Kh7 {[%clk 0:00:04.6]} 97... Qh3+ {[%clk
0:00:06.8]} 98. Kg6 {[%clk 0:00:04.6]} 98... Qg4+ {[%clk 0:00:06.9]} 99. Kh7
{[%clk 0:00:05.2]} 99... Qh5+ {[%clk 0:00:07.1]} 100. Kg8 {[%clk 0:00:05.1]}
100... Rf1 {[%clk 0:00:06.8]} 101. Rf2 {[%clk 0:00:04.1]} 101... Qd5+ {[%clk
0:00:06]} 102. Kh8 {[%clk 0:00:03.1]} 102... Rxf2 {[%clk 0:00:06.2]} 103. g8=Q+
{[%clk 0:00:03.2]} 103... Qxg8+ {[%clk 0:00:06.9]} 104. Kxg8 {[%clk 0:00:03.7]}
104... a1=Q {[%clk 0:00:05.9]} 0-1

[Event "Late-Titled-Tuesday-Blitz-October-03-2023"]
[Site "Chess.com"]
[Date "2023.10.03"]
[Round "11"]
[White "Road2GM3000"]
[Black "Dacean99"]
[Result "0-1"]
[WhiteElo "2390"]
[BlackElo "2546"]
[TimeControl "180+1"]
[EndTime "15:56:25 PDT"]
[Termination "Dacean99 won by resignation"]

1. d4 {[%clk 0:02:48.8]} 1... Nf6 {[%clk 0:02:58.8]} 2. c4 {[%clk 0:02:49]} 2...
e6 {[%clk 0:02:57.5]} 3. Nc3 {[%clk 0:02:49.3]} 3... d5 {[%clk 0:02:57.8]} 4.
cxd5 {[%clk 0:02:49.5]} 4... exd5 {[%clk 0:02:57.7]} 5. Bg5 {[%clk 0:02:50.2]}
5... Be7 {[%clk 0:02:56.6]} 6. e3 {[%clk 0:02:50.7]} 6... O-O {[%clk 0:02:56.3]}
7. Bd3 {[%clk 0:02:50.8]} 7... Nbd7 {[%clk 0:02:51.2]} 8. Qc2 {[%clk 0:02:49.7]}
8... h6 {[%clk 0:02:51.1]} 9. Bh4 {[%clk 0:02:49.8]} 9... c5 {[%clk 0:02:49.9]}
10. Nf3 {[%clk 0:02:50.3]} 10... c4 {[%clk 0:02:49.6]} 11. Bf5 {[%clk
0:02:50.5]} 11... Rb8 {[%clk 0:02:48.1]} 12. O-O {[%clk 0:02:47.3]} 12... b5
{[%clk 0:02:47.2]} 13. Bg3 {[%clk 0:02:39.1]} 13... Rb6 {[%clk 0:02:47.2]} 14.
Ne5 {[%clk 0:02:35.5]} 14... b4 {[%clk 0:02:44]} 15. Na4 {[%clk 0:02:35.3]}
15... Ra6 {[%clk 0:02:41.4]} 16. Nxd7 {[%clk 0:02:34.3]} 16... Bxd7 {[%clk
0:02:41.8]} 17. Nc5 {[%clk 0:02:30.3]} 17... Bxc5 {[%clk 0:02:37.9]} 18. dxc5
{[%clk 0:02:31.2]} 18... Bxf5 {[%clk 0:02:37]} 19. Qxf5 {[%clk 0:02:32.1]} 19...
Qc8 {[%clk 0:02:32.4]} 20. Bd6 {[%clk 0:02:31.2]} 20... Qxf5 {[%clk 0:02:32]}
0-1

[Event "Late-Titled-Tuesday-Blitz-October-03-2023"]
[Site "Chess.com"]
[Date "2023.10.03"]
[Round "11"]
[White "Fandorine"]
[Black "FairChess_on_YouTube"]
[Result "0-1"]
[WhiteElo "2928"]
[BlackElo "3048"]
[TimeControl "180+1"]
[EndTime "15:57:09 PDT"]
[Termination "FairChess_on_YouTube won by resignation"]

1. b3 {[%clk 0:03:00.9]} 1... e5 {[%clk 0:02:59.4]} 2. Bb2 {[%clk 0:02:59.9]}
2... e4 {[%clk 0:02:59]} 3. e3 {[%clk 0:02:49.5]} 3... d5 {[%clk 0:02:58.3]} 4.
c4 {[%clk 0:02:40.9]} 4... Nf6 {[%clk 0:02:57.8]} 5. Bxf6 {[%clk 0:02:34.2]}
5... Qxf6 {[%clk 0:02:56.1]} 6. Nc3 {[%clk 0:02:34.6]} 6... dxc4 {[%clk
0:02:47.3]} 7. Bxc4 {[%clk 0:02:27.6]} 7... Qg6 {[%clk 0:02:43]} 8. Nge2 {[%clk
0:02:25.1]} 8... Qxg2 {[%clk 0:02:39.9]} 9. Rg1 {[%clk 0:02:25.2]} 9... Qxh2
{[%clk 0:02:40.3]} 10. Qc2 {[%clk 0:02:25.5]} 10... Qe5 {[%clk 0:02:37.6]} 11.
O-O-O {[%clk 0:02:14.8]} 11... Nc6 {[%clk 0:02:37.4]} 12. Bb5 {[%clk 0:02:10.3]}
12... Bd7 {[%clk 0:02:21.8]} 13. Qxe4 {[%clk 0:01:58.9]} 13... Ba3+ {[%clk
0:02:16.2]} 0-1

[Event "Late-Titled-Tuesday-Blitz-October-03-2023"]
[Site "Chess.com"]
[Date "2023.10.03"]
[Round "11"]
[White "Msb2"]
[Black "Oleksandr_Bortnyk"]
[Result "1/2-1/2"]
[WhiteElo "3081"]
[BlackElo "3044"]
[TimeControl "180+1"]
[EndTime "15:57:34 PDT"]
[Termination "Game drawn by agreement"]

1. d4 {[%clk 0:03:00.9]} 1... d6 {[%clk 0:02:58.2]} 2. Nf3 {[%clk 0:03:00.1]}
2... Nf6 {[%clk 0:02:57.2]} 3. c4 {[%clk 0:03:00.8]} 3... g6 {[%clk 0:02:57.8]}
4. Nc3 {[%clk 0:03:01.5]} 4... Bg7 {[%clk 0:02:54.2]} 5. e4 {[%clk 0:03:01.6]}
5... O-O {[%clk 0:02:54.9]} 6. Be2 {[%clk 0:03:02.3]} 6... Na6 {[%clk
0:02:54.8]} 7. O-O {[%clk 0:03:02.3]} 7... e5 {[%clk 0:02:55.4]} 8. Be3 {[%clk
0:03:03]} 8... Qe7 {[%clk 0:02:54.4]} 9. dxe5 {[%clk 0:03:01.4]} 9... dxe5
{[%clk 0:02:53.4]} 10. Nd5 {[%clk 0:03:00.2]} 10... Qe6 {[%clk 0:02:49.5]} 11.
c5 {[%clk 0:02:39.9]} 11... c6 {[%clk 0:02:37.5]} 12. Nxf6+ {[%clk 0:02:35.2]}
12... Bxf6 {[%clk 0:02:33.4]} 13. Qc2 {[%clk 0:02:29]} 13... Nc7 {[%clk
0:02:21.5]} 14. Rfd1 {[%clk 0:02:23.3]} 14... Qe7 {[%clk 0:02:22.1]} 15. h3
{[%clk 0:02:12]} 15... Be6 {[%clk 0:02:20.6]} 16. Bc4 {[%clk 0:01:56.9]} 16...
Rfd8 {[%clk 0:02:16]} 17. a3 {[%clk 0:01:51.1]} 17... Rxd1+ {[%clk 0:02:11.8]}
18. Rxd1 {[%clk 0:01:52]} 18... Rd8 {[%clk 0:02:11.5]} 19. Rxd8+ {[%clk
0:01:49.1]} 19... Qxd8 {[%clk 0:02:12.4]} 20. Bxe6 {[%clk 0:01:44.2]} 20... Nxe6
{[%clk 0:02:13.3]} 21. Qd2 {[%clk 0:01:44.8]} 1/2-1/2

[Event "Late-Titled-Tuesday-Blitz-October-03-2023"]
[Site "Chess.com"]
[Date "2023.10.03"]
[Round "11"]
[White "JohnWhite1952"]
[Black "lluiss"]
[Result "0-1"]
[WhiteElo "2045"]
[BlackElo "2142"]
[TimeControl "180+1"]
[EndTime "15:58:01 PDT"]
[Termination "lluiss won by resignation"]

1. e4 {[%clk 0:02:59.1]} 1... c5 {[%clk 0:02:58.5]} 2. Nf3 {[%clk 0:02:58.1]}
2... d6 {[%clk 0:02:58.6]} 3. c3 {[%clk 0:02:57.8]} 3... Nf6 {[%clk 0:02:57.4]}
4. Be2 {[%clk 0:02:57.5]} 4... Nbd7 {[%clk 0:02:56.3]} 5. Qc2 {[%clk 0:02:53.1]}
5... Qc7 {[%clk 0:02:55.1]} 6. d4 {[%clk 0:02:49.3]} 6... cxd4 {[%clk
0:02:54.4]} 7. Nxd4 {[%clk 0:02:49.3]} 7... a6 {[%clk 0:02:54.9]} 8. O-O {[%clk
0:02:47.6]} 8... g6 {[%clk 0:02:55]} 9. Re1 {[%clk 0:02:47.4]} 9... Bg7 {[%clk
0:02:54.9]} 10. Nd2 {[%clk 0:02:43.7]} 10... O-O {[%clk 0:02:53.1]} 11. N2f3
{[%clk 0:02:41.7]} 11... b5 {[%clk 0:02:51.8]} 12. Qd3 {[%clk 0:02:29.1]} 12...
Bb7 {[%clk 0:02:45.2]} 13. Bf1 {[%clk 0:02:19.6]} 13... Rfd8 {[%clk 0:02:43.1]}
14. Bf4 {[%clk 0:02:13.7]} 14... e5 {[%clk 0:02:37.6]} 15. Be3 {[%clk
0:02:00.6]} 15... exd4 {[%clk 0:02:35]} 16. Bxd4 {[%clk 0:02:00.1]} 16... Ne5
{[%clk 0:02:28.4]} 17. Qd2 {[%clk 0:01:56.3]} 17... Nxe4 {[%clk 0:02:22.7]} 18.
Qc2 {[%clk 0:01:47.7]} 18... Nxf3+ {[%clk 0:02:21.5]} 19. gxf3 {[%clk
0:01:42.5]} 19... Ng5 {[%clk 0:02:21.4]} 20. Bxg7 {[%clk 0:01:31.5]} 20... Nxf3+
{[%clk 0:02:20]} 21. Kh1 {[%clk 0:01:24.5]} 21... Nxe1+ {[%clk 0:02:20]} 0-1

[Event "Late-Titled-Tuesday-Blitz-October-03-2023"]
[Site "Chess.com"]
[Date "2023.10.03"]
[Round "11"]
[White "louis198"]
[Black "Sjakkerntobi"]
[Result "1-0"]
[WhiteElo "2636"]
[BlackElo "2511"]
[TimeControl "180+1"]
[EndTime "15:58:15 PDT"]
[Termination "louis198 won by resignation"]

1. d4 {[%clk 0:03:00.4]} 1... d5 {[%clk 0:02:58.6]} 2. c4 {[%clk 0:03:01.1]}
2... e6 {[%clk 0:02:58.8]} 3. Nc3 {[%clk 0:03:02]} 3... c6 {[%clk 0:02:59.2]} 4.
e3 {[%clk 0:03:02.4]} 4... f5 {[%clk 0:02:59.2]} 5. Nf3 {[%clk 0:03:03.3]} 5...
Nf6 {[%clk 0:02:59.6]} 6. Bd3 {[%clk 0:03:04.2]} 6... Bd6 {[%clk 0:03:00]} 7.
O-O {[%clk 0:03:04.9]} 7... O-O {[%clk 0:03:00.5]} 8. b3 {[%clk 0:03:05.8]} 8...
Ne4 {[%clk 0:03:01]} 9. Bb2 {[%clk 0:03:05.8]} 9... Nd7 {[%clk 0:03:01]} 10. Ne2
{[%clk 0:03:06.2]} 10... Ndf6 {[%clk 0:03:01.2]} 11. Rc1 {[%clk 0:03:06.7]}
11... g5 {[%clk 0:03:00]} 12. Ne5 {[%clk 0:03:07]} 12... Qe8 {[%clk 0:02:59.9]}
13. f3 {[%clk 0:03:07]} 13... Nc5 {[%clk 0:02:51.5]} 14. dxc5 {[%clk 0:03:06.6]}
14... Bxc5 {[%clk 0:02:52.1]} 15. Bd4 {[%clk 0:03:07.1]} 15... Bd6 {[%clk
0:02:52.6]} 16. f4 {[%clk 0:03:07.5]} 16... c5 {[%clk 0:02:52]} 17. Bb2 {[%clk
0:03:07.2]} 17... gxf4 {[%clk 0:02:52.5]} 18. exf4 {[%clk 0:03:07.1]} 18... d4
{[%clk 0:02:53]} 19. Ng3 {[%clk 0:03:06.1]} 19... b6 {[%clk 0:02:52.5]} 20. Be2
{[%clk 0:03:03.8]} 20... Bb7 {[%clk 0:02:51.5]} 21. Bf3 {[%clk 0:03:04.3]} 21...
Ne4 {[%clk 0:02:52]} 22. Re1 {[%clk 0:03:04.7]} 22... Bxe5 {[%clk 0:02:50.8]}
23. fxe5 {[%clk 0:03:04.2]} 23... Qg6 {[%clk 0:02:50.6]} 24. Rc2 {[%clk
0:02:51.8]} 24... Rad8 {[%clk 0:02:39.5]} 25. Rce2 {[%clk 0:02:13.7]} 25... d3
{[%clk 0:02:30.1]} 26. Rxe4 {[%clk 0:01:58.5]} 26... fxe4 {[%clk 0:02:30.2]} 27.
Bxe4 {[%clk 0:01:58.7]} 27... Bxe4 {[%clk 0:02:28.6]} 28. Rxe4 {[%clk
0:01:56.2]} 28... d2 {[%clk 0:02:26.4]} 29. Rg4 {[%clk 0:01:46.8]} 29... Qxg4
{[%clk 0:02:16.2]} 30. Qxg4+ {[%clk 0:01:47.7]} 30... Kh8 {[%clk 0:02:16.9]} 31.
Qd1 {[%clk 0:01:47.8]} 31... Rf4 {[%clk 0:02:15.2]} 32. Bc3 {[%clk 0:01:45.5]}
32... b5 {[%clk 0:02:14.6]} 33. Bxd2 {[%clk 0:01:44.4]} 33... Rfd4 {[%clk
0:02:14.3]} 34. Nf1 {[%clk 0:01:44.3]} 34... bxc4 {[%clk 0:02:14.7]} 35. bxc4
{[%clk 0:01:44.8]} 1-0

[Event "Late-Titled-Tuesday-Blitz-October-03-2023"]
[Site "Chess.com"]
[Date "2023.10.03"]
[Round "11"]
[White "Joshukid"]
[Black "szachmistrz2500"]
[Result "1-0"]
[WhiteElo "2567"]
[BlackElo "2447"]
[TimeControl "180+1"]
[EndTime "15:58:15 PDT"]
[Termination "Joshukid won by resignation"]

1. c4 {[%clk 0:02:55.5]} 1... c5 {[%clk 0:02:58.1]} 2. Nf3 {[%clk 0:02:55]} 2...
g6 {[%clk 0:02:58.2]} 3. g3 {[%clk 0:02:55]} 3... Bg7 {[%clk 0:02:58.3]} 4. Bg2
{[%clk 0:02:55.9]} 4... Nc6 {[%clk 0:02:58.4]} 5. O-O {[%clk 0:02:56.3]} 5... e5
{[%clk 0:02:57.9]} 6. Nc3 {[%clk 0:02:56.7]} 6... Nge7 {[%clk 0:02:57.9]} 7. Ne1
{[%clk 0:02:57.6]} 7... a6 {[%clk 0:02:53.2]} 8. Nc2 {[%clk 0:02:57.3]} 8... Rb8
{[%clk 0:02:53.3]} 9. a4 {[%clk 0:02:57.2]} 9... O-O {[%clk 0:02:51.2]} 10. Ne3
{[%clk 0:02:57.8]} 10... d6 {[%clk 0:02:50.7]} 11. Ned5 {[%clk 0:02:58.1]} 11...
Nxd5 {[%clk 0:02:48.5]} 12. Nxd5 {[%clk 0:02:58.2]} 12... Ne7 {[%clk 0:02:48.7]}
13. d3 {[%clk 0:02:57.1]} 13... Be6 {[%clk 0:02:42.1]} 14. Bg5 {[%clk
0:02:55.8]} 14... f6 {[%clk 0:02:41.4]} 15. Nxe7+ {[%clk 0:02:54.8]} 15... Qxe7
{[%clk 0:02:40.8]} 16. Bd2 {[%clk 0:02:55.7]} 16... f5 {[%clk 0:02:33.9]} 17. b4
{[%clk 0:02:55]} 17... b6 {[%clk 0:02:31.2]} 18. a5 {[%clk 0:02:52.2]} 18...
bxa5 {[%clk 0:02:19.7]} 19. bxc5 {[%clk 0:02:52.1]} 19... dxc5 {[%clk
0:02:13.9]} 20. Rxa5 {[%clk 0:02:52.3]} 20... Rb6 {[%clk 0:02:05.2]} 21. Qa4
{[%clk 0:02:51.7]} 21... Rb2 {[%clk 0:01:33.1]} 22. Be3 {[%clk 0:02:50.8]} 22...
Rc8 {[%clk 0:01:26.2]} 23. Rxa6 {[%clk 0:02:49.6]} 23... Bd7 {[%clk 0:01:24.5]}
24. Qa3 {[%clk 0:02:47.9]} 24... Rxe2 {[%clk 0:01:23.3]} 25. Bd5+ {[%clk
0:02:48.2]} 25... Kh8 {[%clk 0:01:21.7]} 26. Ra8 {[%clk 0:02:46.8]} 26... Rxa8
{[%clk 0:01:10.1]} 27. Qxa8+ {[%clk 0:02:38.8]} 27... Bf8 {[%clk 0:01:10.3]} 28.
Bh6 {[%clk 0:02:30.1]} 28... Be8 {[%clk 0:01:05.7]} 29. Bg5 {[%clk 0:02:29.5]}
29... Qd6 {[%clk 0:01:03.7]} 30. Qxe8 {[%clk 0:02:29]} 1-0

[Event "Late-Titled-Tuesday-Blitz-October-03-2023"]
[Site "Chess.com"]
[Date "2023.10.03"]
[Round "11"]
[White "Marasmus01"]
[Black "OYAcosta"]
[Result "1-0"]
[WhiteElo "2501"]
[BlackElo "2184"]
[TimeControl "180+1"]
[EndTime "15:59:37 PDT"]
[Termination "Marasmus01 won by checkmate"]

1. c4 {[%clk 0:03:00.9]} 1... c6 {[%clk 0:02:53.1]} 2. Nf3 {[%clk 0:02:58.7]}
2... d5 {[%clk 0:02:54]} 3. e3 {[%clk 0:02:57.6]} 3... Nf6 {[%clk 0:02:53.2]} 4.
Nc3 {[%clk 0:02:56.8]} 4... Bf5 {[%clk 0:02:51]} 5. Qb3 {[%clk 0:02:55.3]} 5...
Qb6 {[%clk 0:02:49.8]} 6. d4 {[%clk 0:02:46.9]} 6... Nbd7 {[%clk 0:02:47.5]} 7.
Be2 {[%clk 0:02:44.2]} 7... e6 {[%clk 0:02:47.6]} 8. c5 {[%clk 0:02:43.6]} 8...
Qc7 {[%clk 0:02:47.3]} 9. O-O {[%clk 0:02:41.2]} 9... Be7 {[%clk 0:02:43.7]} 10.
Qa4 {[%clk 0:02:36.7]} 10... Ne4 {[%clk 0:02:42.3]} 11. Bd2 {[%clk 0:02:34.6]}
11... Bg4 {[%clk 0:02:39.6]} 12. Rfd1 {[%clk 0:02:33.6]} 12... h5 {[%clk
0:02:26.8]} 13. Be1 {[%clk 0:02:31.8]} 13... f5 {[%clk 0:02:23.2]} 14. b4 {[%clk
0:02:25.9]} 14... h4 {[%clk 0:02:20.8]} 15. b5 {[%clk 0:02:24.6]} 15... f4
{[%clk 0:02:19.3]} 16. bxc6 {[%clk 0:02:21.7]} 16... bxc6 {[%clk 0:02:17.8]} 17.
h3 {[%clk 0:02:08.7]} 17... fxe3 {[%clk 0:02:11]} 18. hxg4 {[%clk 0:02:06.2]}
18... exf2+ {[%clk 0:02:11]} 19. Bxf2 {[%clk 0:02:01.6]} 19... Nxc3 {[%clk
0:02:10.9]} 20. Qc2 {[%clk 0:01:58.2]} 20... Nxd1 {[%clk 0:02:05.5]} 21. Rxd1
{[%clk 0:01:59.1]} 21... Bf6 {[%clk 0:01:56.7]} 22. Qg6+ {[%clk 0:01:56]} 22...
Kd8 {[%clk 0:01:50.9]} 23. g5 {[%clk 0:01:55.9]} 23... Nf8 {[%clk 0:01:48.9]}
24. Qc2 {[%clk 0:01:52.8]} 24... Be7 {[%clk 0:01:45.3]} 25. Ne5 {[%clk
0:01:49.1]} 25... Bxg5 {[%clk 0:01:39.3]} 26. Bg4 {[%clk 0:01:48.1]} 26... Bf6
{[%clk 0:01:36]} 27. Re1 {[%clk 0:01:44.7]} 27... Ke7 {[%clk 0:01:03.1]} 28.
Ng6+ {[%clk 0:01:29.5]} 28... Nxg6 {[%clk 0:01:02.6]} 29. Qxg6 {[%clk
0:01:27.2]} 29... Rh6 {[%clk 0:01:02.4]} 30. Rxe6+ {[%clk 0:01:23.8]} 30... Kd8
{[%clk 0:00:57.6]} 31. Qe8# {[%clk 0:01:22.6]} 1-0

[Event "Late-Titled-Tuesday-Blitz-October-03-2023"]
[Site "Chess.com"]
[Date "2023.10.03"]
[Round "11"]
[White "Arystanner"]
[Black "Krakozia"]
[Result "1-0"]
[WhiteElo "2848"]
[BlackElo "2968"]
[TimeControl "180+1"]
[EndTime "15:59:58 PDT"]
[Termination "Arystanner won by resignation"]

1. e4 {[%clk 0:03:00.9]} 1... c5 {[%clk 0:02:59.1]} 2. Nf3 {[%clk 0:03:01.2]}
2... e6 {[%clk 0:02:59.1]} 3. d4 {[%clk 0:03:01.3]} 3... cxd4 {[%clk 0:02:59.1]}
4. Nxd4 {[%clk 0:03:02.2]} 4... a6 {[%clk 0:02:59.2]} 5. g3 {[%clk 0:03:01.8]}
5... d5 {[%clk 0:02:57.5]} 6. Nb3 {[%clk 0:03:02.1]} 6... dxe4 {[%clk
0:02:52.6]} 7. Qxd8+ {[%clk 0:03:02.1]} 7... Kxd8 {[%clk 0:02:52.5]} 8. Nc3
{[%clk 0:03:00]} 8... f5 {[%clk 0:02:46.1]} 9. Bf4 {[%clk 0:02:53.2]} 9... Bd7
{[%clk 0:02:27.1]} 10. O-O-O {[%clk 0:02:49.7]} 10... Nc6 {[%clk 0:02:16.2]} 11.
Bg2 {[%clk 0:02:32.1]} 11... Nf6 {[%clk 0:02:02.5]} 12. f3 {[%clk 0:02:32.3]}
12... e5 {[%clk 0:01:56.8]} 13. Bg5 {[%clk 0:02:32.5]} 13... exf3 {[%clk
0:01:55.2]} 14. Bxf3 {[%clk 0:02:32.8]} 14... e4 {[%clk 0:01:55]} 15. Be2 {[%clk
0:02:31.6]} 15... Be7 {[%clk 0:01:47.6]} 16. Rhf1 {[%clk 0:02:26.9]} 16... Ke8
{[%clk 0:01:20]} 17. Bxf6 {[%clk 0:02:10.9]} 17... Bxf6 {[%clk 0:01:19.8]} 18.
Nd5 {[%clk 0:02:04.9]} 18... Bd8 {[%clk 0:01:08]} 19. Nc5 {[%clk 0:02:03.8]}
19... Bc8 {[%clk 0:01:07.5]} 20. g4 {[%clk 0:01:52.7]} 20... b6 {[%clk
0:01:01.8]} 21. Na4 {[%clk 0:01:50.3]} 21... Rb8 {[%clk 0:00:49.8]} 22. gxf5
{[%clk 0:01:48.1]} 22... Kf7 {[%clk 0:00:31.9]} 23. Bh5+ {[%clk 0:01:45.2]}
23... g6 {[%clk 0:00:31.3]} 24. fxg6+ {[%clk 0:01:45.2]} 24... Kg7 {[%clk
0:00:31.5]} 25. Rf7+ {[%clk 0:01:31.8]} 25... Kh6 {[%clk 0:00:31.1]} 26. g7
{[%clk 0:01:32.1]} 26... Rg8 {[%clk 0:00:26.5]} 27. Nf4 {[%clk 0:01:32.6]} 27...
Bg5 {[%clk 0:00:24.5]} 28. Rd6+ {[%clk 0:01:32.7]} 1-0